Cogmind - Beta 15 @@@ ROGUE MODE // 2025.06.06 @ 21:20:27 Player: Candle Result: Destroyed by S-27 Virus with Autogun Performance ------------- Evolutions (3) 1500 Regions Visited (10) 2000 Robots Destroyed (140) 700 Value Destroyed (4521) 4521 Prototype IDs (24) 480 Alien Tech Used (0) 0 Bonus (849) 849 TOTAL SCORE: 10050 Bonus ------- High Alert Combat Kills 439 Follower Combat Kills 110 Met Data Miner 300 Cogmind --------- Core Integrity 0/700 Matter 300/300 Energy 144/150 System Corruption 4% Temperature Cool (12) Movement Flying (27) Location -6/Proximity Caves Parts ------- > --- POWER (1) -------- Micro Nuclear Core > --- PROPULSION (5) --- VTOL Module Improved Flight Unit (fused) Cooled VTOL Module Cooled VTOL Module > --- UTILITY (5) ------ Hacking Suite System Shield Heart of Steel > --- WEAPON (2) ------- Spear > --- INVENTORY (5) ---- Advanced Heat Sink Improved Sensor Array Advanced ECM Suite Improved Spread Laser Improved Spread Laser Peak State ------------ > --- POWER ------------ Micro Nuclear Core > --- PROPULSION ------- Improved Flight Unit Cooled VTOL Module Cooled VTOL Module Cooled VTOL Module > --- UTILITY ---------- Hacking Suite System Shield Heart of Steel > --- WEAPON ----------- Improved Spread Laser Spear > --- INVENTORY -------- Improved Deuterium Engine Cooled VTOL Module Advanced Heat Sink Advanced ECM Suite Improved Spread Laser [Rating: 63] Favorites ----------- Power Deuterium Engine Engine Deuterium Engine Power Core Micro Nuclear Core Propulsion Light Treads Treads Light Treads Wheel Compact Wheel Hover Unit Improved Airjet Flight Unit Improved Flight Unit Utility System Shield Device Experimental Sensor Array Storage Huge Storage Unit Processor Improved Signal Interpreter Hackware System Shield Protection Reactive Plating Weapon Gatling Laser Energy Gun Gatling Laser Energy Cannon Heavy Particle Cannon Ballistic Gun Improved Assault Rifle Launcher Grenade Launcher Special Weapon Mining Laser Impact Weapon Great Maul Slashing Weapon Great Axe Piercing Weapon Spear Build | -11 -10 -10 -10 -9 -8 -7 -7 -7 -7 -6 ------- Run | Yrd Mat Min Exi Min Mat Fac Low Low Dat Pro Slots Evolved 6 | . . . . . 4 2 . . . . Power . | . . . . . . . . . . . Propulsion 3 | . . . . . 2 1 . . . . Utility 3 | . . . . . 2 1 . . . . Weapon . | . . . . . . . . . . . Parts Attached 134 | 5 10 7 . 2 46 60 2 1 . 1 Power 16 | 1 1 1 . . 5 7 1 . . . Engine 10 | 1 1 1 . . 3 3 1 . . . Core 6 | . . . . . 2 4 . . . . Reactor . | . . . . . . . . . . . Propulsion 46 | 2 1 4 . . 14 24 . . . 1 Treads 18 | 2 1 2 . . 13 . . . . . Leg . | . . . . . . . . . . . Wheel 1 | . . 1 . . . . . . . . Hover 1 | . . . . . . 1 . . . . Flight 26 | . . 1 . . 1 23 . . . 1 Utility 29 | 1 4 . . . 9 13 1 1 . . Device 12 | . . . . . 6 4 1 1 . . Storage 4 | 1 3 . . . . . . . . . Processor 3 | . . . . . . 3 . . . . Hackware 6 | . 1 . . . 1 4 . . . . Protection 4 | . . . . . 2 2 . . . . Artifact . | . . . . . . . . . . . Weapon 43 | 1 4 2 . 2 18 16 . . . . Energy Gun 24 | 1 3 2 . 1 8 9 . . . . Energy Cannon 2 | . . . . . 2 . . . . . Ballistic Gun 9 | . . . . . 6 3 . . . . Ballistic Cannon . | . . . . . . . . . . . Launcher 3 | . . . . 1 2 . . . . . Special Weapon 1 | . 1 . . . . . . . . . Impact Weapon 2 | . . . . . . 2 . . . . Slashing Weapon 1 | . . . . . . 1 . . . . Piercing Weapon 1 | . . . . . . 1 . . . . Special Melee Weapon . | . . . . . . . . . . . Unidentified Prototypes 15 | . . . . . 6 8 . 1 . . Parts Lost 24 | . . . . 5 5 10 3 . . 1 Power 2 | . . . . . . 2 . . . . Propulsion 7 | . . . . 2 1 2 1 . . 1 Utility 6 | . . . . . 2 2 2 . . . Weapon 9 | . . . . 3 2 4 . . . . Highest Loss Streak 5 | . . . . 5 2 3 2 . . 1 To Critical Strikes . | . . . . . . . . . . . Average Backups 11 | . 7 14 14 13 20 6 5 5 5 5 Power 1 | . 1 3 3 3 2 . . . . . Propulsion 2 | . 1 3 3 2 3 1 1 1 1 . Utility 3 | . 1 2 4 4 6 2 2 2 2 2 Weapon 4 | . 2 4 4 3 8 1 1 1 2 2 Tool/Special . | . . . . . . . . . . . Unused Backups 33 | . . 2 . . 12 15 1 . . 3 Power 6 | . . 1 . . 3 2 . . . . Propulsion 5 | . . . . . 1 3 1 . . . Utility 13 | . . . . . 3 8 . . . 2 Weapon 9 | . . 1 . . 5 2 . . . 1 Tool/Special . | . . . . . . . . . . . Average Slot Usage (%) 95 | . 94 99 100 95 97 96 84 80 69 68 Engine 6 | . 14 14 14 14 6 3 1 . . . Core 2 | . . . . . 2 3 5 7 7 7 Treads 18 | . 27 27 28 25 35 1 . . . . Flight 14 | . . . . . . 34 32 30 30 29 Device 6 | . . . . . 8 10 4 7 7 7 Storage 6 | . 14 14 14 14 9 . . . . . Processor 4 | . . . . . . 10 7 5 . . Hackware 12 | . 11 14 14 14 11 14 15 15 15 15 Protection 2 | . . . . . 5 . . . . . Energy Gun 13 | . 25 28 28 25 7 9 7 7 7 6 Energy Cannon 1 | . . . . . 4 . . . . . Ballistic Gun 1 | . . . . . 5 . . . . . Peak Build Rating 63 | 5 11 14 14 14 34 61 57 63 59 62 Average Rating 32 | 3 9 13 14 13 28 48 44 48 59 57 On Entrance 28 | . 5 11 14 14 11 33 57 45 59 59 Naked Turns . | . . . . . . . . . . . Heaviest Build 110 | 12 35 33 33 33 110 103 24 22 20 20 Greatest Support 80 | 40 40 40 40 40 80 80 25 20 20 20 Greatest Overweight (x) 9 | 3 1 . . 9 1 4 1 1 . 1 Average Overweight (x) . | . . . . . . . . . . . Largest Inventory Capacity 25 | 8 25 15 15 15 25 25 5 5 5 5 Average Capacity 13 | 7 13 15 15 15 23 6 5 5 5 5 Most Carried 25 | 1 12 15 14 14 25 25 5 5 5 5 Average Carried 11 | . 7 14 14 13 20 6 4 4 5 4 Final Capacity 25 | 8 15 15 15 15 25 5 5 5 5 5 Final Carried 25 | 1 12 14 14 10 25 5 5 5 5 5 Class Distribution -------------------- 53% | Scavenger-Mutant 21% | Hacker-Sprinter 10% | Scout 5% | Mutant 4% | Sprinter Dominant Class ---------------- Scavenger-Mutant | -10/Materials Scavenger-Mutant | -10/Mines Scavenger-Mutant | -10/Exiles Scavenger-Mutant | -9/Mines Scavenger-Mutant | -8/Materials Hacker-Sprinter | -7/Factory Hacker-Sprinter | -7/Lower Caves Hacker-Sprinter | -7/Lower Caves Hacker-Sprinter | -7/Data Miner Hacker-Sprinter | -6/Proximity Caves Resources | -11 -10 -10 -10 -9 -8 -7 -7 -7 -7 -6 ----------- Run | Yrd Mat Min Exi Min Mat Fac Low Low Dat Pro Matter Collected 3008 | 231 199 95 . . 1170 1137 136 10 . 30 Remotely . | . . . . . . . . . . . Salvage Created 5475 | . 597 96 . 24 2245 2401 73 . . 39 Parts 256 | . 28 10 . . 113 100 . . . 5 Haulers Intercepted 17 | . 2 . . . 6 9 . . . . Recyclers Shooed 2 | . . . . . 2 . . . . . Parts Field Recycled . | . . . . . . . . . . . Retrieved Matter . | . . . . . . . . . . . Parts Self-Destructed 13 | . . . . . . . . 3 . 10 Prevented . | . . . . . . . . . . . Kills | -11 -10 -10 -10 -9 -8 -7 -7 -7 -7 -6 ------- Run | Yrd Mat Min Exi Min Mat Fac Low Low Dat Pro Combat Hostiles Destroyed 91 | . 12 6 . 1 31 36 2 . . 3 Melee 3 | . . . . . . 3 . . . . Guns 68 | . 11 6 . 1 16 29 2 . . 3 Cannons 13 | . . . . . 13 . . . . . Classes Destroyed 14 | . 5 . . 1 5 2 . . . 1 Worker 6 | . . . . . 1 5 . . . . Builder 3 | . . . . . 2 1 . . . . Hauler 17 | . 2 . . . 6 9 . . . . Recycler 5 | . . . . . 3 2 . . . . Operator 3 | . 1 . . . 1 1 . . . . Drone 1 | . . . . . . . . . . 1 Watcher 15 | . 3 . . . 4 8 . . . . Swarmer 14 | . 3 6 . . 3 . . . . 2 Grunt 45 | . 9 . . . 16 20 . . . . Duelist 1 | . . . . . . 1 . . . . Sentry 14 | . . . . . 9 4 1 . . . Demolisher 1 | . . . . 1 . . . . . . Hunter 6 | . . . . . 3 2 1 . . . Programmer 9 | . . . . . . 9 . . . . Best Kill Streak 5 | . 4 3 . 1 4 5 2 . . 2 Combat Bots Only 4 | . 2 3 . 1 4 4 1 . . 2 Max Kills in Single Turn 5 | . 1 1 . 1 2 5 1 . . 1 Gunslinging . | . . . . . . . . . . . Exploded . | . . . . . . . . . . . Melee 1 | . . . . . . 1 . . . . Uniques/NPCs Destroyed . | . . . . . . . . . . . Combat | -11 -10 -10 -10 -9 -8 -7 -7 -7 -7 -6 -------- Run | Yrd Mat Min Exi Min Mat Fac Low Low Dat Pro Hostile Shots Fired 729 | . 75 23 . 13 240 296 47 4 . 31 Missed 270 | . 26 8 . 1 71 128 22 2 . 12 Hits 459 | . 49 15 . 12 169 168 25 2 . 19 Projectile 459 | . 49 15 . 12 169 168 25 2 . 19 AOE 13 | . . . . 13 . . . . . . Critical Strikes 16 | . 2 . . . 10 3 . . . 1 Damage Taken 6271 | . 569 138 . 508 2261 2220 224 35 . 316 Core 1154 | . 77 21 . 64 288 516 66 . . 122 Absorbed by Shields 216 | . . . . . 216 . . . . . Ignored by Resistances 44 | . . . . . 44 . . . . . Regen/Repaired (Parts) 399 | . 117 . . . 177 105 . . . . Core Remaining (%) 60 | 100 . . . 35 47 . . . . . Volleys Fired 443 | 3 86 10 6 9 164 144 10 . . 11 Largest 2 | 1 2 2 2 2 2 2 1 . . 1 Hottest 160 | 50 115 115 112 112 144 160 75 . . 75 Shots Fired 697 | 3 115 20 12 12 304 210 10 . . 11 Gun 603 | 3 114 20 12 11 212 210 10 . . 11 Cannon 92 | . . . . . 92 . . . . . Launcher 1 | . . . . 1 . . . . . . Special 1 | . 1 . . . . . . . . . Kinetic 143 | . . . . . 137 6 . . . . Thermal 553 | 3 115 20 12 11 167 204 10 . . 11 Explosive 1 | . . . . 1 . . . . . . Electromagnetic . | . . . . . . . . . . . Robot Hit Streak 21 | 1 11 5 . 4 16 21 7 . . 3 Robot Miss Streak 8 | 1 5 2 . 2 4 8 4 . . 6 Penetration Max 1 | . . . . . 1 . . . . . Secondary Targets 5 | . . 3 . . 2 . . . . . Max Gunslinging Chain 1 | . . 1 . . 1 . . . . . Shots Hit Robots 518 | 2 78 14 . 8 196 200 10 . . 10 Core Hits 295 | . 30 6 . 3 80 154 11 . . 11 Critical Kills 1 | . . . . . 1 . . . . . Critical Parts Destroyed 1 | . . . . . 1 . . . . . Critical Strikes 20 | 1 9 2 . . 3 5 . . . . Burn 15 | 1 9 2 . . 1 2 . . . . Meltdown 1 | . . . . . 1 . . . . . Destroy 1 | . . . . . 1 . . . . . Sever 3 | . . . . . . 3 . . . . Melee Attacks 40 | . . . . . . 40 . . . . Impact 1 | . . . . . . 1 . . . . Slashing 28 | . . . . . . 28 . . . . Piercing 11 | . . . . . . 11 . . . . Sneak Attacks 2 | . . . . . . 2 . . . . Combat Hostiles . | . . . . . . . . . . . Follow-up Attacks . | . . . . . . . . . . . Damage Inflicted 11044 | 24 1060 215 . 128 3672 5580 218 . . 147 Guns 8549 | 24 1060 215 . 123 2385 4379 218 . . 145 Cannons 1287 | . . . . . 1287 . . . . . Explosions 565 | . . . . 5 . 560 . . . . Melee 641 | . . . . . . 641 . . . . Ramming 2 | . . . . . . . . . . 2 Kinetic 1567 | . . . . . 1477 90 . . . . Thermal 8829 | 24 1060 215 . 123 2195 4849 218 . . 145 Explosive 5 | . . . . 5 . . . . . . Electromagnetic . | . . . . . . . . . . . Impact . | . . . . . . . . . . . Slashing 453 | . . . . . . 453 . . . . Piercing 188 | . . . . . . 188 . . . . Highest Corruption 4 | . 2 2 2 2 2 4 4 4 4 4 Average Corruption 2 | . 2 2 2 2 2 2 4 4 4 4 Corruption Purged 1 | . . . . . . 1 . . . . Corruption Blocked . | . . . . . . . . . . . Effects 131 | . 7 17 8 5 37 42 7 5 . 3 Message Errors 38 | . 3 5 1 . 15 10 2 1 . 1 Matter Fused 38 | . 2 4 4 3 9 13 3 . . . Heat Flow Errors 12 | . . 2 . 1 1 5 1 2 . . Energy Discharges 12 | . 1 2 1 . 3 5 . . . . Parts Rejected 1 | . . . . . . 1 . . . . Parts Fused 2 | . . . . 1 . . . . . 1 Data Loss (minor) 14 | . . 3 1 . 4 3 1 2 . . Data Loss (major) 5 | . 1 . . . 2 1 . . . 1 Misfires 5 | . . . . . 1 4 . . . . Alerts 3 | . . 1 1 . 1 . . . . . Weapon Failures 1 | . . . . . 1 . . . . . Overload Shots . | . . . . . . . . . . . Overflow Damage 154 | . . . . . . 154 . . . . Projectiles . | . . . . . . . . . . . Explosions 125 | . . . . . . 125 . . . . Melee 29 | . . . . . . 29 . . . . Knockbacks . | . . . . . . . . . . . Impact . | . . . . . . . . . . . Kinetic . | . . . . . . . . . . . Secondary . | . . . . . . . . . . . Self-Inflicted Damage 40 | . . . . 39 . . . . . 1 Shots 1 | . . . . 1 . . . . . . Rammed 1 | . . . . . . . . . . 1 Targets Rammed 1 | . . . . . . . . . . 1 Kicked . | . . . . . . . . . . . Crushed . | . . . . . . . . . . . Highest Temperature 477 | 30 387 270 270 134 399 477 253 278 . 182 Average Temperature 102 | 16 104 110 148 67 95 105 88 133 . 71 Received Heat Transfer 2229 | . 282 9 . . 1007 750 57 18 . 106 Effects 20 | . 1 . . . 4 14 . 1 . . Shutdowns 1 | . . . . . 1 . . . . . Energy Bleed 4 | . . . . . . 4 . . . . Interference 11 | . 1 . . . 3 6 . 1 . . Short Circuit 2 | . . . . . . 2 . . . . Damage (major) 2 | . . . . . . 2 . . . . Siege Activations . | . . . . . . . . . . . Martial Activations . | . . . . . . . . . . . Shielding Activations . | . . . . . . . . . . . Robots Disrupted . | . . . . . . . . . . . Combat Hostiles . | . . . . . . . . . . . Robots Corrupted . | . . . . . . . . . . . Combat Hostiles . | . . . . . . . . . . . Parts Fried . | . . . . . . . . . . . Impact Corruptions . | . . . . . . . . . . . Robots Melted 8 | . 2 . . . 2 4 . . . . Combat Hostiles 7 | . 1 . . . 2 4 . . . . Parts Melted 47 | . 9 1 . . 11 25 1 . . . Heat Transferred 18567 | 148 3578 703 . 333 4070 9435 180 . . 120 Parts Sabotaged . | . . . . . . . . . . . Parts Stolen . | . . . . . . . . . . . Parts Stripped . | . . . . . . . . . . . Power Chain Reactions . | . . . . . . . . . . . Alert | -11 -10 -10 -10 -9 -8 -7 -7 -7 -7 -6 ------- Run | Yrd Mat Min Exi Min Mat Fac Low Low Dat Pro Maximum Alert Level 4 | . . . . . 2 4 . . . . Low Security (%) 59 | 100 100 100 . 100 36 53 . . . . Level 1 21 | . . . . . 49 10 . . . . Level 2 10 | . . . . . 13 14 . . . . Level 3 8 | . . . . . . 20 . . . . Level 4 . | . . . . . . . . . . . Level 5 . | . . . . . . . . . . . High Security . | . . . . . . . . . . . Max Security . | . . . . . . . . . . . Peak Influence 1139 | . 95 74 . 31 511 1139 . . . . Initial 226 | . . 4 . . . 226 . . . . Average 231 | . 30 11 . . 248 337 . . . . Influence Increases 3954 | . 430 140 . 31 1051 1863 155 . . 284 Destroy 0b10 Robot/C 1860 | . 240 120 . 20 620 720 40 . . 100 Destroy 0b10 Robot/NC 255 | . 30 . . . 85 130 . . . 10 Destroy Leader 532 | . 60 20 . 10 180 232 10 . . 20 Allied During Kill 19 | . . . . . . . . . . 19 Successful Hack 289 | . 39 . . . 44 206 . . . . Disable Machine 240 | . . . . . 75 165 . . . . Destroy Structure 54 | . 1 . . 1 17 35 . . . . Partial Spotted 105 | . . . . . . 105 . . . . Lose Combat Pursuer 600 | . 60 . . . 30 270 105 . . 135 Influence Decreases 3770 | . 418 152 . 31 552 1223 572 218 504 100 Entered New Map 1345 | . . 8 . . . 273 422 138 504 . Time Decay 2009 | . 418 144 . . 517 660 120 80 . 70 Lost Part 206 | . . . . 31 35 100 30 . . 10 Lost Ally 60 | . . . . . . 40 . . . 20 Purge Threat 150 | . . . . . . 150 . . . . Squads Dispatched 35 | . 1 . . . 1 33 . . . . Investigation 11 | . . . . . . 11 . . . . Extermination 11 | . . . . . . 11 . . . . Reinforcement 8 | . 1 . . . 1 6 . . . . Assault 1 | . . . . . . 1 . . . . Garrison 4 | . . . . . . 4 . . . . Intercept . | . . . . . . . . . . . Searches Triggered . | . . . . . . . . . . . Construction Impeded . | . . . . . . . . . . . Haulers Reinforced 3 | . . . . . . 3 . . . . Active Scanning Responses . | . . . . . . . . . . . Cargo Convoy Interrupts . | . . . . . . . . . . . Stealth | -11 -10 -10 -10 -9 -8 -7 -7 -7 -7 -6 --------- Run | Yrd Mat Min Exi Min Mat Fac Low Low Dat Pro Distress Signals 10 | . 1 . . 1 4 4 . . . . Communications Jammed . | . . . . . . . . . . . Distress Signals . | . . . . . . . . . . . Times Spotted 181 | . 19 7 . 2 48 74 12 3 . 16 Peak Tracking Total 8 | . 4 3 . 2 5 7 7 3 . 8 Tactical Retreats 21 | . 3 . . . 2 10 2 . . 4 Traps | -11 -10 -10 -10 -9 -8 -7 -7 -7 -7 -6 ------- Run | Yrd Mat Min Exi Min Mat Fac Low Low Dat Pro Traps Triggered 7 | . 1 . . . . 6 . . . . Indirectly . | . . . . . . . . . . . Trap Hack Attempts . | . . . . . . . . . . . Triggered . | . . . . . . . . . . . Disarmed 3 | . 3 . . . . . . . . . Reprogrammed . | . . . . . . . . . . . Reused . | . . . . . . . . . . . Traps Extracted . | . . . . . . . . . . . Installed . | . . . . . . . . . . . Triggered . | . . . . . . . . . . . Machines | -11 -10 -10 -10 -9 -8 -7 -7 -7 -7 -6 ---------- Run | Yrd Mat Min Exi Min Mat Fac Low Low Dat Pro Machines Disabled 16 | . . . . . 5 11 . . . . Max in Single Turn 10 | . . . . . 1 10 . . . . Garrison Access 3 | . . . . . 1 2 . . . . Machines Repaired . | . . . . . . . . . . . Machines Dismantled . | . . . . . . . . . . . Machines Sabotaged . | . . . . . . . . . . . Overloaded Fab Kills . | . . . . . . . . . . . Hacking | -11 -10 -10 -10 -9 -8 -7 -7 -7 -7 -6 --------- Run | Yrd Mat Min Exi Min Mat Fac Low Low Dat Pro Machines Accessed 64 | . 8 2 4 . 13 31 1 1 4 . Terminals 30 | . 7 1 . . 8 13 1 . . . Fabricators 4 | . . . . . . 4 . . . . Repair Stations 6 | . 1 . . . 2 3 . . . . Recycling Units 4 | . . . . . . 4 . . . . Scanalyzers 6 | . . . . . 2 4 . . . . Garrison Access 4 | . . . . . 1 3 . . . . Total Hacks 264 | . 30 3 4 . 62 126 7 1 31 . Successful 168 | . 22 1 4 . 39 63 7 1 31 . Failed 95 | . 8 2 . . 23 62 . . . . Catastrophic 14 | . 1 . . . 2 11 . . . . Database Lockouts 1 | . . . . . . 1 . . . . Manual 75 | . 13 2 . . 18 42 . . . . Terminals 126 | . 25 2 . . 33 59 7 . . . Fabricators 11 | . . . . . . 11 . . . . Repair Stations 31 | . 5 . . . 12 14 . . . . Recycling Units 20 | . . . . . . 20 . . . . Scanalyzers 29 | . . . . . 15 14 . . . . Garrison Access 10 | . . . . . 2 8 . . . . Terminal Hacks 85 | . 11 1 4 . 11 19 7 1 31 . Record 23 | . . . 4 . . 1 7 . 11 . Part Schematic 13 | . . . . . . . . . 13 . Robot Schematic 4 | . . . . . . . . . 4 . Robot Analysis 4 | . . . . . 1 3 . . . . Prototype ID Bank 3 | . . . . . . . . . 3 . Open Door 2 | . . 1 . . . . . 1 . . Level Access Points 1 | . . . . . . 1 . . . . Branch Access Points 2 | . . . . . 1 1 . . . . Terminal Index 2 | . . . . . 1 1 . . . . Scanalyzer Index 1 | . . . . . . 1 . . . . Alert Level 1 | . . . . . . 1 . . . . Unreport Threat 1 | . . . . . . 1 . . . . Locate Traps 4 | . 2 . . . 1 1 . . . . Disarm Traps 1 | . 1 . . . . . . . . . Dispatch Records 1 | . . . . . . 1 . . . . Transport Status 4 | . . . . . 3 1 . . . . Assault Status 1 | . . . . . . 1 . . . . Recall Investigation 1 | . . . . . . 1 . . . . Hauler Manifests 6 | . 2 . . . 2 2 . . . . Registered Components 1 | . . . . . . 1 . . . . Zone Layout 9 | . 6 . . . 2 1 . . . . Fabricator Hacks 9 | . . . . . . 9 . . . . Network Status 1 | . . . . . . 1 . . . . Load Schematic 4 | . . . . . . 4 . . . . Build 4 | . . . . . . 4 . . . . Repair Station Hacks 20 | . 4 . . . 9 7 . . . . Scan Component 11 | . 2 . . . 5 4 . . . . Repair 9 | . 2 . . . 4 3 . . . . Recycling Unit Hacks 4 | . . . . . . 4 . . . . Report Inventory 1 | . . . . . . 1 . . . . Retrieve Matter 1 | . . . . . . 1 . . . . Retrieve Components 2 | . . . . . . 2 . . . . Scanalyzer 22 | . . . . . 14 8 . . . . Insert Component 13 | . . . . . 8 5 . . . . Analyze 9 | . . . . . 6 3 . . . . Garrison Access Hacks 3 | . . . . . 1 2 . . . . Seal Access 3 | . . . . . 1 2 . . . . Unauthorized Hacks 25 | . 7 . . . 4 14 . . . . Terminals 18 | . 7 . . . 4 7 . . . . Track 3 | . 3 . . . . . . . . . Assimilate 4 | . . . . . . 4 . . . . Botnet 9 | . 3 . . . 3 3 . . . . Operators 2 | . 1 . . . 1 . . . . . Fabricators . | . . . . . . . . . . . Repair Stations . | . . . . . . . . . . . Recycling Units 7 | . . . . . . 7 . . . . Reject 2 | . . . . . . 2 . . . . Recyclers 2 | . . . . . . 2 . . . . Mask 3 | . . . . . . 3 . . . . Scanalyzers . | . . . . . . . . . . . Garrison Access . | . . . . . . . . . . . Data Cores Recovered . | . . . . . . . . . . . Used . | . . . . . . . . . . . Hacking Detections 47 | . 8 1 . . 11 27 . . . . Full Trace Events 13 | . 1 . . . 2 10 . . . . Feedback Events 1 | . . . . . . 1 . . . . Corruption 1 | . . . . . . 1 . . . . Feedback Blocked . | . . . . . . . . . . . Robot Schematics Acquired 4 | . . . . . . . . . 4 . Robots Built . | . . . . . . . . . . . Authchips . | . . . . . . . . . . . Time . | . . . . . . . . . . . Total Robot Build Rating . | . . . . . . . . . . . Part Schematics Acquired 19 | . . . . . 4 2 . . 13 . Parts Built 3 | . . . . . . 3 . . . . Authchips . | . . . . . . . . . . . Time 379 | . . . . . . 379 . . . . Total Part Build Rating 12 | . . . . . . 12 . . . . Parts Repaired 9 | . 2 . . . 4 3 . . . . Time 419 | . 52 . . . 238 129 . . . . Parts Recycled . | . . . . . . . . . . . Recycled Matter . | . . . . . . . . . . . Retrieved Matter 145 | . . . . . . 145 . . . . Retrieved Components 19 | . . . . . . 19 . . . . Parts Scanalyzed 10 | . . . . . 6 4 . . . . Part Schematics Acquired 6 | . . . . . 4 2 . . . . Parts Damaged 2 | . . . . . 1 1 . . . . Bothacking | -11 -10 -10 -10 -9 -8 -7 -7 -7 -7 -6 ------------ Run | Yrd Mat Min Exi Min Mat Fac Low Low Dat Pro Used RIF Installer . | . . . . . . . . . . . Robots Hacked . | . . . . . . . . . . . Non-combat . | . . . . . . . . . . . Combat . | . . . . . . . . . . . Robot Hacks Applied . | . . . . . . . . . . . Relay Couplers Released . | . . . . . . . . . . . Fabnet Peak Effective % . | . . . . . . . . . . . Robots Rewired . | . . . . . . . . . . . Allies Hacked . | . . . . . . . . . . . Hacks Repelled . | . . . . . . . . . . . Allies | -11 -10 -10 -10 -9 -8 -7 -7 -7 -7 -6 -------- Run | Yrd Mat Min Exi Min Mat Fac Low Low Dat Pro Total Allies 5 | . . . . . . 4 . . . 1 Largest Group 2 | . . . . . . 2 . . . 1 Highest-Rated Group 96 | . . . . . . 52 . . . 96 Highest-Rated Ally 96 | . . . . . . 26 . . . 96 Total Orders . | . . . . . . . . . . . Ally Attacks 21 | . . . . . . . . . . 21 Total Damage 564 | . . . . . . . . . . 564 Kills 4 | . . . . . . . . . . 4 Allies Corrupted . | . . . . . . . . . . . Allies Melted . | . . . . . . . . . . . Intel | -11 -10 -10 -10 -9 -8 -7 -7 -7 -7 -6 ------- Run | Yrd Mat Min Exi Min Mat Fac Low Low Dat Pro Active Infowar (turns) 6235 | . . . . . 1555 4646 34 . . . Sensors 4407 | . . . . . 314 4092 1 . . . Terrain 3516 | . . . . . 1241 2275 . . . . ECM 34 | . . . . . . 1 33 . . . Robot Analysis Total 4 | . . . . . 1 3 . . . . Derelict Logs Recovered 5 | . . 1 . . . . 2 1 . 1 Drone Launches . | . . . . . . . . . . . Drone Recoveries . | . . . . . . . . . . . Exploration | -11 -10 -10 -10 -9 -8 -7 -7 -7 -7 -6 ------------- Run | Yrd Mat Min Exi Min Mat Fac Low Low Dat Pro Turns Passed 13628 | 70 1405 976 724 472 4128 5235 246 171 23 178 Spaces Moved 10780 | 38 651 561 442 234 1307 6079 634 460 79 295 Core 40 | 15 . . . 7 . 18 . . . . Treads 3294 | 23 651 561 442 227 1298 92 . . . . Legs . | . . . . . . . . . . . Wheels 9 | . . . . . 9 . . . . . Hover . | . . . . . . . . . . . Flight 7437 | . . . . . . 5969 634 460 79 295 Fastest Speed 23 | 50 160 160 160 160 115 23 25 27 27 27 Average Speed 77 | 149 160 160 160 170 231 30 28 27 27 27 Slowest Speed 500 | 200 240 160 160 500 240 250 93 93 27 96 Overloaded Moves . | . . . . . . . . . . . Propulsion Burnouts . | . . . . . . . . . . . Robots Hopped 39 | . . . . . . 37 . . . 2 Potential Cave-ins . | . . . . . . . . . . . Cave-ins Triggered . | . . . . . . . . . . . Exploration Rate (%) 66 | 4 98 99 89 46 79 90 71 57 69 27 Regions Visited 10 Branch Regions 7 Pre-discovered Areas 2 | . . 1 . . . . . . 1 . Known Exits Taken 3 | . . . . . 1 1 1 . . . Unknown Exits Taken 7 | 1 1 1 1 1 . . . 1 1 . Scrap Searched 5 | . . 1 . . . . 2 1 . 1 Spaces Dug 20 | . 1 . . . . 19 . . . . Terrain Destroyed 52 | . 1 . . 2 14 35 . . . . Melee 19 | . . . . . . 19 . . . . Projectile 15 | . 1 . . . 14 . . . . . AOE 18 | . . . . 2 . 16 . . . . Terrain Rammed . | . . . . . . . . . . . Walls Destroyed . | . . . . . . . . . . . Machines Disabled . | . . . . . . . . . . . Actions | -11 -10 -10 -10 -9 -8 -7 -7 -7 -7 -6 --------- Run | Yrd Mat Min Exi Min Mat Fac Low Low Dat Pro Total 15187 | 46 892 623 447 295 2108 9123 688 505 79 381 Wait 3476 | . 127 32 . 48 485 2633 41 41 1 68 Move 10698 | 37 650 560 441 233 1306 6010 633 459 78 291 Hop 33 | . . . . . . 31 . . . 2 Pick Up 79 | 1 8 3 . . 42 23 . . . 2 Fast Attach 74 | 5 5 1 . . 20 40 1 1 . 1 Attach 32 | . 1 2 . 4 7 17 . . . 1 Detach 27 | . 2 3 . . 6 13 . 2 . 1 Swap 109 | . 10 5 . 1 31 59 2 . . 1 Drop 142 | . 3 7 . . 47 80 1 2 . 2 Fire 443 | 3 86 10 6 9 164 144 10 . . 11 Melee 40 | . . . . . . 40 . . . . Ram 1 | . . . . . . . . . . 1 Kick . | . . . . . . . . . . . Crush . | . . . . . . . . . . . Escape Stasis 33 | . . . . . . 33 . . . . Rewire . | . . . . . . . . . . . Trap . | . . . . . . . . . . . Miscellaneous . | . . . . . . . . . . . Route ------- -11/Scrapyard -10/Materials (discovered 4 exits: [*Mat x3] / *Min) -10/Mines (discovered 4 exits: [*Mat x2] / *Exi / [*Sub]) -10/Exiles -9/Mines -8/Materials (discovered 3 exits: *Fac x3) -7/Factory (discovered 6 exits: *Fac x4 / *Low x2) -7/Lower Caves -7/Lower Caves -7/Data Miner -6/Proximity Caves History --------- Turn | Location | Event 9 | -11/Scrapyard | Discovered new exit (range 16) 71 | -11/Scrapyard | Entered Materials 300 | -10/Materials | Build established: Mutant 514 | -10/Materials | Discovered new exit (range 15) 592 | -10/Materials | Discovered new exit (range 13) 642 | -10/Materials | Repaired Lgt. Treads 668 | -10/Materials | Repaired Lgt. Treads 869 | -10/Materials | Build established: Scavenger-Mutant 960 | -10/Materials | Discovered new exit (range 15) 1149 | -10/Materials | Discovered new exit (range 18) 1476 | -10/Materials | Entered Mines 1558 | -10/Mines | Learned 4 Materials zone layouts 1563 | -10/Mines | Deemed a non-threat by the Exiles lab entrance 1563 | -10/Mines | Discovered new exit (range 5) 1589 | -10/Mines | Joined a pair of Derelicts in attacking an 0b10 outpost 1667 | -10/Mines | Discovered new exit (range 8) 1907 | -10/Mines | Found a damaged Exp. Sensor Array with a note attached 1910 | -10/Mines | Found Prototype Device 1922 | -10/Mines | Learned location of Storage (-9) 1942 | -10/Mines | Discovered new exit (range 6) 2233 | -10/Mines | Found the Drone Emporium 2274 | -10/Mines | Discovered new exit (range 12) 2452 | -10/Mines | Entered Exiles 2452 | -10/Exiles | Found Exiles lab abandoned 3155 | -10/Exiles | Discovered new exit (range 14) 3176 | -10/Exiles | Entered Mines 3203 | -9/Mines | Met a Derelict bent on vengeance 3402 | -9/Mines | Discovered new exit (range 6) 3533 | -9/Mines | Assembled infested the area 3538 | -9/Mines | Assisted by a Guerilla fighting off Assembled 3565 | -9/Mines | Core integrity fell below 50% 3605 | -9/Mines | Lost 5 parts (2n3w) 3648 | -9/Mines | Entered Materials 3648 | -8/Materials | Evolved 4 slots: Propulsion x2, Utility x2 3649 | -8/Materials | Identified exit to Factory 3684 | -8/Materials | Identified Exp. Sensor Array 3902 | -8/Materials | Repaired Broken Exp. Sensor Array 3930 | -8/Materials | Repaired Lgt. Treads 3962 | -8/Materials | Repaired Lgt. Treads 5543 | -8/Materials | Repaired Adv. Heat Sink 7195 | -8/Materials | Discovered exit to Factory (range 16) 7386 | -8/Materials | Core integrity fell below 50% 7776 | -8/Materials | Entered Factory 7776 | -7/Factory | Evolved 2 slots: Propulsion x1, Utility x1 8631 | -7/Factory | Identified exit to Factory 8639 | -7/Factory | Discovered new exit (range 15) 9015 | -7/Factory | Build established: Sprinter 9406 | -7/Factory | Build established: Scout 9990 | -7/Factory | Repaired Gatling Laser 10504 | -7/Factory | Repaired Broken Imp. Flight Unit 10600 | -7/Factory | Repaired Imp. Flight Unit 10623 | -7/Factory | Garrison activated, responded to threat 10805 | -7/Factory | Build established: Hacker-Sprinter 10807 | -7/Factory | Discovered new exit (range 15) 11270 | -7/Factory | Central database locked down 11958 | -7/Factory | Core integrity fell below 50% 11986 | -7/Factory | Lost 3 parts (2n1w) 12176 | -7/Factory | First assault squad dispatched 12199 | -7/Factory | Fabricated Cld. VTOL Module (x1) 12408 | -7/Factory | Fabricated Cld. VTOL Module (x1) 12568 | -7/Factory | Garrison activated, responded to threat 12633 | -7/Factory | Fabricated Cld. VTOL Module (x1) 12788 | -7/Factory | Identified exit to Lower Caves 13011 | -7/Factory | Entered Lower Caves 13013 | -7/Lower Caves | Attracted the attention of an 0b10 checkpoint 13019 | -7/Lower Caves | Core integrity fell below 20% 13025 | -7/Lower Caves | Encountered a Warlord checkpoint 13025 | -7/Lower Caves | Identified exit to Lower Caves 13029 | -7/Lower Caves | Learned Factory terminal intel 13188 | -7/Lower Caves | Learned Extension trap positions 13188 | -7/Lower Caves | Learned Research emergency access door positions 13188 | -7/Lower Caves | Learned Factory terminal intel 13257 | -7/Lower Caves | Entered another Lower Caves area 13381 | -7/Lower Caves | Found Prototype Device 13381 | -7/Lower Caves | Identified Heart of Steel 13413 | -7/Lower Caves | Attracted the attention of an 0b10 checkpoint 13426 | -7/Lower Caves | Discovered new exit (range 6) 13428 | -7/Lower Caves | Entered Data Miner 13428 | -7/Data Miner | Discovered new exit (range 6) 13435 | -7/Data Miner | Met Data Miner 13440 | -7/Data Miner | Learned location of Section 7 (-3) 13440 | -7/Data Miner | Acquired the access code to Warlord's prototype stash 13444 | -7/Data Miner | Received God Mode back door access code from Data Miner 13451 | -7/Data Miner | Entered Proximity Caves 13478 | -6/Proximity Caves | Escorted by Enhanced Grunt 13541 | -6/Proximity Caves | Spotter reported a threat 13629 | -6/Proximity Caves | Destroyed by S-27 Virus with Autogun Last Messages --------------- Dropped Adv. Heat Sink. Acquired Adv. Heat Sink. UB87JI3V WT6S&%:JH8ZLY2Q2ZT ALERT: Unidentified potential threat approaching Complex 0b10. N-01 Spotter destroyed. Enhanced Grunt overheating. Enhanced Grunt destroyed. S-27 Virus destroyed. Cld. VTOL Module destroyed. System corrupted: Imp. Flight Unit fused. S-27 Virus destroyed. VTOL Module fries itself beyond repair. S-27 Virus destroyed. VTOL Module fries itself beyond repair. Slammed into G-67 Veteran. Acquired VTOL Module. Critical hit (Burn: +50). Acquired 20 matter. 2E-8I8(k) breaks down the debris. Map ----- +----------------------------------------------------+ | ## ""# # ### #?????????? #??? #??????????? | | "# ##### #?# #??????????# #??? #??????????? | | % #???# #?# #??????????# #### #??????????? | | #???# ### #######???## ???????????? | | ##???# #???# #????????????? | | #????########### #???# #????????????? | | # #??????????????# #??## ##???????????? | | # ##?????????????## #### ###?????????? | | % "#??????????????# #?????????? | | ##????????# ### #?????????? | | #????????# #### #### ##?????????? | | # #??????# #??# ###??????????? | | # #??????## #??# #????????????? | | # ##???????#### ##??#* ### ##???????????? | | ## ###???????????### ????#%!#?## ##??????????? | | ?###???????????????## #????#! #??## %##?????????? | | ????????????????????##?????#%!#???## %%#?????????? | | ???????????????????????????#* ###??## %#?????????? | | ??????????????????????????## ##??## #?????????? | | ???????????????????????## ###??##?????????? | | ????????????????????## ##????????????? | | ??????????????????# #????????????? | | ?????????????????# ### #????????????? | | ?????????????????# ##?#####????????????? | | ??????????????# ### ####???????????????? | | ?????????????#ss @ #??????????????? | | ### ?????????????# s ????????? | | ##?? #?????????????###### ????????? | | #????????????????????????## ####????????? | | ##?????????????????????????###### ###???????????? | | #????????????????????????????????###?????????????? | | ?????????????????????????????????????????????????? | | ?????????????????????????????????????????????????? | | ?????????????????????????????????????????????????? | | ?????????????????????????????????????????????????? | | ?????????????????????????????????????????????????? | | ?????????????????????????????????????????????????? | | ?????????????????????????????????????????????????? | | ?????????????????????????????????????????????????? | | ?????????????????????????????????????????????????? | | ?????????????????????????????????????????????????? | | ?????????????????????????????????????????????????? | | ?????????????????????????????????????????????????? | | ?????????????????????????????????????????????????? | | ?????????????????????????????????????????????????? | | ?????????????????????????????????????????????????? | | | | | | | | | +----------------------------------------------------+ Best States ------------- Heat Dissipation 60 Energy Generation 18 Energy Capacity 290 Matter Stores 300 Matter Capacity 300 Sight Range 16 Robot Scan Range 20 Terrain Scan Range 16 Terrain Scan Density 110 ECM Strength 2 Armor Coverage 150 Resistance: KI 20 Evasion (%) 65 Core Analysis 6 Recoil Reduction 4 Offensive Hacking 10 Defensive Hacking 20 Item Schematics ----------------- Hvy. Particle Gun | -8/Materials | Scanalyzed Imp. Flight Unit | -8/Materials | Scanalyzed Minigun | -8/Materials | Scanalyzed Adv. Heat Sink | -8/Materials | Scanalyzed Imp. Light Armor Plating | -7/Factory | Scanalyzed Cld. VTOL Module | -7/Factory | Scanalyzed Imp. Gyrokinetic Inverter | -7/Data Miner | Free Adv. Plasma Cannon | -7/Data Miner | Free Adv. Cryofiber Web | -7/Data Miner | Free Imp. Arc Projector | -7/Data Miner | Free Disruptor Cannon | -7/Data Miner | Free Imp. Transmission Jammer | -7/Data Miner | Free Gyrokinetic Inverter | -7/Data Miner | Free Antimatter Cannon | -7/Data Miner | Free Exp. Targeting Computer | -7/Data Miner | Free Biomechanical Wings | -7/Data Miner | Free Lgt. Regenerative Plating | -7/Data Miner | Free Combat Drone Bay | -7/Data Miner | Free Matter Compressor | -7/Data Miner | Free Robot Schematics ------------------ Y-54 Guardian | -7/Data Miner | Free G-50 Soldier | -7/Data Miner | Free E-15 Imp | -7/Data Miner | Free A-15 Conveyor | -7/Data Miner | Free Fabricated ------------ Cld. VTOL Module | x1 | -7/Factory Cld. VTOL Module | x1 | -7/Factory Cld. VTOL Module | x1 | -7/Factory Repaired ---------- Lgt. Treads | 16% | -10/Materials Exp. Sensor Array | 62% | -8/Materials | Broken Lgt. Treads | 41% | -8/Materials Lgt. Treads | 57% | -8/Materials Adv. Heat Sink | 52% | -8/Materials Gatling Laser | 14% | -7/Factory Imp. Flight Unit | 85% | -7/Factory | Broken Imp. Flight Unit | 35% | -7/Factory Alien Tech Used ----------------- None Achievements -------------- It Was An Accident, I Swear Challenges ------------ None Game ------ Seed MicrowarpSalvageDirector Manual? 0 Play Time 02:25:23 Cumulative 125.3 hours Start 2025.06.06 @ 18:37:49 End 2025.06.06 @ 21:20:27 Sessions 1 Manual Loads 0 Difficulty Rogue Special Mode None Game No. 158 Rogue 158 Adventurer 0 Explorer 0 Win Type - Total 0 Types 0/0/0/0/0/0/0/0/0/0 Lore% 40 Gallery% 37 Achievement% 33 Wizard Run 0 Options --------- Layout 1 ASCII 0 Keyboard 0 Movement Mouse Keybinds 0 Fullscreen 1 Font 32/SmallcapsGlow Map View 50x40 Zoom Use 0% Tactical HUD 0 Map Filters NONE Filters NONE Steam 1 RUN: 4a159b6e-e39a-4441-b961-829ca0634c47